Cogmind - Beta 10.2 @@@ ROGUE MODE // 2021.04.02 @ 23:01:39 Player: onyhow Result: Destroyed by Y-64 Sentinel with Wave Gun Performance ------------- Evolutions (5) 2500 Regions Visited (15) 3000 Robots Destroyed (152) 760 Value Destroyed (6054) 6054 Prototype IDs (36) 720 Alien Tech Used (0) 0 Bonus (959) 959 TOTAL SCORE: 13993 Bonus ------- High Alert Combat Kills 583 Follower Combat Kills 210 Aligned with FarCom 300 Friendly Fire -134 Cogmind --------- Core Integrity 0/1000 Matter 157/300 Energy 99/100 System Corruption 0% Temperature Cool (9) Movement Core (50) Location -4/Proximity Caves Parts ------- > --- POWER (2) -------- (None) > --- PROPULSION (4) --- (None) > --- UTILITY (9) ------ (None) > --- WEAPON (2) ------- (None) > --- INVENTORY (4) ---- Heavy Treads System Restoration Module System Restoration Module Peak State ------------ > --- POWER ------------ Cold Fusion Reactor Micro Fission Core > --- PROPULSION ------- Spiked Medium Treads Spiked Medium Treads Spiked Medium Treads Spiked Medium Treads > --- UTILITY ---------- Improved Heat Sink Advanced Heat Sink Advanced Cooling System Large Storage Unit Large Storage Unit Improved Weapon Cycler Makeshift Thermal Plating System Restoration Module System Restoration Module > --- WEAPON ----------- Heavy Flak Cannon Enhanced Gauss Cannon > --- INVENTORY -------- Fusion Reactor Improved Medium Treads Improved Medium Treads Improved Medium Treads Spiked Medium Treads Spiked Medium Treads Heavy Treads Compact Battery Compact Matter Pod Makeshift System Shield Improved Field Recycling Unit Variable Charge Gun Variable Charge Gun Advanced Plasma Cannon KE Penetrator [Rating: 89] Favorites ----------- Power Cold Fusion Reactor Engine Improved Deuterium Engine Power Core Micro Fission Core Reactor Cold Fusion Reactor Propulsion Light Treads Treads Light Treads Utility Large Storage Unit Device Improved Heat Sink Storage Large Storage Unit Processor Signal Interpreter Hackware Hacking Suite Protection Improved Light Armor Plating Weapon Advanced Assault Cannon Energy Gun Plasma Rifle Energy Cannon Advanced Plasma Cannon Ballistic Gun Coil Gun Ballistic Cannon Advanced Assault Cannon Launcher Heavy Missile Launcher Impact Weapon Makeshift Hammer Slashing Weapon Katana Build | -11 -10 -10 -10 -9 -8 -7 -7 -7 -6 -6 -5 -5 -5 -5 -4 ------- Run | Scr Mat Min Exi Min Mat Fac Was Fac Fac Ext Fac Upp Upp Zhi Pro Slots Evolved 10 | . . . . . 4 2 . . 2 . 2 . . . . Power 1 | . . . . . . . . . 1 . . . . . . Propulsion 2 | . . . . . 1 1 . . . . . . . . . Utility 7 | . . . . . 3 1 . . 1 . 2 . . . . Weapon . | . . . . . . . . . . . . . . . . Parts Attached 223 | 6 9 . 1 . 38 14 1 19 35 9 61 17 5 . 8 Power 18 | 1 . . . . 6 2 . . 4 . 4 1 . . . Engine 11 | 1 . . . . 6 2 . . 2 . . . . . . Core 1 | . . . . . . . . . . . 1 . . . . Reactor 6 | . . . . . . . . . 2 . 3 1 . . . Propulsion 43 | 1 1 . . . 6 2 . 8 4 2 9 5 2 . 3 Treads 43 | 1 1 . . . 6 2 . 8 4 2 9 5 2 . 3 Leg . | . . . . . . . . . . . . . . . . Wheel . | . . . . . . . . . . . . . . . . Hover . | . . . . . . . . . . . . . . . . Flight . | . . . . . . . . . . . . . . . . Utility 106 | 2 5 . 1 . 13 5 1 9 23 5 34 6 1 . 1 Device 56 | . . . . . 8 1 1 6 11 2 22 4 . . 1 Storage 10 | 2 4 . 1 . 2 . . . . . . . 1 . . Processor 2 | . 1 . . . . 1 . . . . . . . . . Hackware 1 | . . . . . . . . . 1 . . . . . . Protection 37 | . . . . . 3 3 . 3 11 3 12 2 . . . Artifact . | . . . . . . . . . . . . . . . . Weapon 56 | 2 3 . . . 13 5 . 2 4 2 14 5 2 . 4 Energy Gun 15 | 1 1 . . . 5 . . . 3 . 2 1 . . 2 Energy Cannon 16 | . . . . . 2 3 . 1 . . 7 2 . . 1 Ballistic Gun 10 | 1 1 . . . 4 1 . . 1 1 1 . . . . Ballistic Cannon 10 | . 1 . . . 1 1 . 1 . . 3 2 1 . . Launcher 1 | . . . . . . . . . . 1 . . . . . Special Weapon . | . . . . . . . . . . . . . . . . Impact Weapon 2 | . . . . . . . . . . . . . 1 . 1 Slashing Weapon 2 | . . . . . 1 . . . . . 1 . . . . Piercing Weapon . | . . . . . . . . . . . . . . . . Special Melee Weapon . | . . . . . . . . . . . . . . . . Unidentified Prototypes 10 | . . . . . 4 2 . . 1 . 3 . . . . Parts Lost 55 | . 1 . . . 10 . 1 . 1 7 5 8 . . 22 Power 4 | . . . . . 1 . . . . . . 1 . . 2 Propulsion 14 | . . . . . 4 . . . . 2 1 . . . 7 Utility 19 | . . . . . 1 . . . 1 3 1 4 . . 9 Weapon 18 | . 1 . . . 4 . 1 . . 2 3 3 . . 4 Highest Loss Streak 22 | . 1 . . . 3 . 1 . 1 5 2 6 . . 22 Average Slot Usage (%) 96 | . 98 100 100 100 89 99 94 100 99 99 93 96 100 100 86 Engine 5 | . 14 14 14 14 8 7 7 7 6 . . . . . . Core 1 | . . . . . . . . . . . 3 5 5 5 4 Reactor 3 | . . . . . . . . . 6 13 6 4 5 5 4 Treads 24 | . 26 28 28 28 26 29 30 30 26 25 18 22 23 23 20 Device 18 | . . . . . 11 15 15 20 15 14 31 29 32 29 23 Storage 14 | . 25 14 15 28 18 15 15 15 13 13 11 11 13 17 15 Hackware 1 | . . . . . . . . . 5 4 . . . . . Protection 7 | . . . . . 6 13 12 9 10 13 7 8 5 5 3 Energy Gun 4 | . 14 14 14 14 6 . . . 4 5 1 . . . . Energy Cannon 2 | . . . . . 1 7 7 7 1 . 5 3 . . . Ballistic Gun 2 | . 10 . . . 5 . . . 1 5 . . . . . Ballistic Cannon 5 | . 3 14 14 14 3 7 4 7 4 . 3 6 11 11 8 Naked Turns 6 | . . . . . . . . . . . . . . . 6 Heaviest Build 93 | 16 42 26 42 42 60 80 80 81 84 89 93 81 81 79 79 Greatest Support 128 | 20 40 40 40 40 60 80 80 88 98 106 128 128 114 114 118 Greatest Overweight (x) 1 | . 1 . 1 1 1 1 . 1 1 1 1 . . . 1 Average Overweight (x) . | . . . . 1 . . . . . . . . . . . Largest Inventory Capacity 16 | 8 16 10 16 16 16 16 16 16 16 16 16 16 16 16 16 Average Capacity 15 | 6 11 10 10 16 16 16 16 16 16 16 16 16 16 16 14 Most Carried 16 | 6 15 10 11 12 16 16 16 16 16 16 16 16 16 15 15 Average Carried 14 | 4 10 9 10 11 14 15 15 15 15 15 15 14 15 15 12 Final Capacity 16 | 8 10 10 16 16 16 16 16 16 16 16 16 16 16 16 4 Final Carried 16 | 6 10 10 11 12 16 16 16 16 16 13 16 13 15 15 4 Class Distribution -------------------- 54% | Scavenger-Mutant 36% | Mutant 8% | Derelict-Mutant Dominant Class ---------------- Mutant | -10/Materials Mutant | -10/Mines Mutant | -10/Exiles Mutant | -9/Mines Scavenger-Mutant | -8/Materials Scavenger-Mutant | -7/Factory Scavenger-Mutant | -7/Waste Scavenger-Mutant | -7/Factory Mutant | -6/Factory Scavenger-Mutant | -6/Extension Scavenger-Mutant | -5/Factory Scavenger-Mutant | -5/Upper Caves Derelict-Mutant | -5/Upper Caves Derelict-Mutant | -5/Zhirov Derelict-Mutant | -4/Proximity Caves Resources | -11 -10 -10 -10 -9 -8 -7 -7 -7 -6 -6 -5 -5 -5 -5 -4 ----------- Run | Scr Mat Min Exi Min Mat Fac Was Fac Fac Ext Fac Upp Upp Zhi Pro Matter Collected 4666 | 262 128 . 10 36 731 313 . 275 838 130 1113 677 121 . 32 Remotely . | . . . . . . . . . . . . . . . . Salvage Created 6477 | 72 511 . . 20 1148 138 . 125 761 752 1857 875 153 . 65 Parts 289 | 4 39 . . 1 42 7 . 10 45 37 71 23 6 . 4 Haulers Intercepted 2 | . 1 . . . . . . . 1 . . . . . . Recyclers Shooed 7 | . 3 . . . 1 . . . . 1 2 . . . . Parts Field Recycled . | . . . . . . . . . . . . . . . . Retrieved Matter . | . . . . . . . . . . . . . . . . Parts Self-Destructed 36 | . . . . . . . . . . . . 22 6 . 8 Prevented . | . . . . . . . . . . . . . . . . Kills | -11 -10 -10 -10 -9 -8 -7 -7 -7 -6 -6 -5 -5 -5 -5 -4 ------- Run | Scr Mat Min Exi Min Mat Fac Was Fac Fac Ext Fac Upp Upp Zhi Pro Combat Hostiles Destroyed 114 | . 11 . . 1 19 3 . 1 17 6 28 21 3 . 4 Guns 38 | . 11 . . . 13 . . . 10 2 2 . . . . Cannons 70 | . . . . 1 5 3 . 1 7 . 25 21 3 . 4 AOE 5 | . . . . . 1 . . . . 4 . . . . . Classes Destroyed 17 | 1 5 . . . 3 1 . 1 . 3 3 . . . . Worker 6 | . . . . . . . . . . 6 . . . . . Builder 10 | . . . . . . . . 2 1 7 . . . . . Tunneler 1 | . . . . . . . . . . 1 . . . . . Hauler 2 | . 1 . . . . . . . 1 . . . . . . Recycler 8 | 1 . . . . 2 . . . . 4 1 . . . . Operator 3 | . 2 . . . 1 . . . . . . . . . . Drone 1 | . . . . . . . . . . . 1 . . . . Watcher 8 | . 2 . . . 2 2 . 1 . . 1 . . . . Swarmer 19 | . 3 . . . . . . . 6 1 . 6 . . 3 Saboteur 1 | . . . . . . . . . . . 1 . . . . Grunt 50 | . 8 . . 1 15 2 . . 4 1 8 11 . . . Brawler 3 | . . . . . 1 . . . . . 2 . . . . Duelist 1 | . . . . . . . . . . . 1 . . . . Sentry 14 | . . . . . 2 . . 1 2 2 3 2 1 . 1 Hunter 8 | . . . . . 1 . . . . . 5 . 2 . . Programmer 15 | . . . . . . 1 . . 5 . 8 1 . . . Behemoth 3 | . . . . . . . . . . 2 . 1 . . . Best Kill Streak 12 | 1 3 . . 1 5 3 . 1 3 12 3 5 2 . 4 Combat Bots Only 5 | . 3 . . 1 3 2 . 1 3 2 3 5 2 . 4 Max Kills in Single Turn 4 | 1 2 . . 1 2 1 . 1 1 4 2 2 1 . 1 Gunslinging 1 | . 1 . . . . . . . . . . . . . . Exploded 2 | . . . . . 1 . . . . 2 . . . . . Melee . | . . . . . . . . . . . . . . . . Uniques/NPCs Destroyed . | . . . . . . . . . . . . . . . . Combat | -11 -10 -10 -10 -9 -8 -7 -7 -7 -6 -6 -5 -5 -5 -5 -4 -------- Run | Scr Mat Min Exi Min Mat Fac Was Fac Fac Ext Fac Upp Upp Zhi Pro Damage Taken 14284 | . 326 . . 192 1717 205 45 36 1190 2004 2577 2845 218 . 2929 Core 1579 | . 38 . . 13 260 16 . . 79 150 281 298 23 . 421 Absorbed by Shields . | . . . . . . . . . . . . . . . . Reduced by Siege Mode 33 | . . . . . . . . . . . 22 11 . . . Core Remaining (%) 80 | 100 . . . 79 52 . . 97 . 73 . . . . . Volleys Fired 428 | 2 42 . . 13 74 17 . 7 52 27 102 59 7 . 26 Largest 2 | 2 2 . . 2 2 2 . 2 2 2 2 2 2 . 2 Hottest 179 | 60 60 . . 75 123 123 . 123 123 114 179 155 110 . 173 Shots Fired 842 | 4 84 . . 17 146 31 . 16 101 54 205 118 14 . 52 Gun 362 | 4 84 . . 4 118 . . . 53 41 34 5 . . 19 Cannon 467 | . . . . 13 28 31 . 16 48 . 171 113 14 . 33 Launcher 13 | . . . . . . . . . . 13 . . . . . Special . | . . . . . . . . . . . . . . . . Kinetic 376 | 2 42 . . 13 78 14 . 8 52 23 37 68 14 . 25 Thermal 307 | . . . . . 31 17 . 3 38 18 123 50 . . 27 Explosive 13 | . . . . . . . . . . 13 . . . . . Electromagnetic 146 | 2 42 . . 4 37 . . 5 11 . 45 . . . . Robot Hit Streak 39 | 3 11 . . 27 39 8 . 8 36 21 35 27 7 . 13 Robot Miss Streak 8 | . 3 . . . 2 1 . 2 4 1 4 3 8 . 6 Penetration Max 1 | . . . . . . . . . . 1 . . . . . Secondary Targets 4 | . 3 . . . 1 . . . . . . . . . . Max Gunslinging Chain 1 | . 1 . . . 1 . . . . . . . . . . Shots Hit Robots 688 | 3 56 . . 16 127 24 . 9 79 44 168 90 10 . 62 Core Hits 346 | 2 27 . . 3 54 8 . 5 31 52 74 62 7 . 21 Critical Hits 25 | . . . . . 1 1 . . 1 . 12 8 1 . 1 Critical Kills 9 | . . . . . . . . . 1 . 4 3 1 . . Critical Parts Destroyed 14 | . . . . . 1 1 . . . . 8 4 . . . Melee Attacks 22 | . . . . . 5 . . . . . . . . . 17 Impact 17 | . . . . . . . . . . . . . . . 17 Slashing 5 | . . . . . 5 . . . . . . . . . . Piercing . | . . . . . . . . . . . . . . . . Sneak Attacks 1 | . . . . . 1 . . . . . . . . . . Combat Hostiles . | . . . . . . . . . . . . . . . . Follow-up Attacks . | . . . . . . . . . . . . . . . . Damage Inflicted 18861 | 36 663 . . 267 2733 626 . 244 2008 3087 4492 2895 180 . 1630 Guns 5160 | 36 663 . . 58 1466 . . . 1074 853 568 125 . . 317 Cannons 10165 | . . . . 209 453 626 . 244 926 . 3924 2770 180 . 833 Explosions 2869 | . . . . . 645 . . . . 2224 . . . . . Melee 649 | . . . . . 169 . . . . . . . . . 480 Ramming 18 | . . . . . . . . . 8 10 . . . . . Kinetic 6290 | 9 212 . . 209 924 252 . 104 1163 496 746 1423 180 . 572 Thermal 7538 | . . . . . 1082 374 . 25 772 357 2878 1472 . . 578 Explosive 2224 | . . . . . . . . . . 2224 . . . . . Electromagnetic 2142 | 27 451 . . 58 558 . . 115 65 . 868 . . . . Impact 480 | . . . . . . . . . . . . . . . 480 Slashing 169 | . . . . . 169 . . . . . . . . . . Piercing . | . . . . . . . . . . . . . . . . Highest Corruption 21 | . . . . . 10 5 21 21 3 1 8 1 . . . Average Corruption 7 | . . . . . 9 2 15 20 1 1 4 1 . . . Corruption Purged 20 | . . . . . . . . 1 5 1 12 1 . . . Effects 182 | . . . . . 78 10 6 50 9 3 26 . . . . Message Errors 33 | . . . . . 12 2 2 9 3 2 3 . . . . Matter Fused 42 | . . . . . 25 3 1 7 1 . 5 . . . . Heat Flow Errors 14 | . . . . . 6 1 1 5 . . 1 . . . . Energy Discharges 13 | . . . . . 5 1 . 3 1 . 3 . . . . Parts Rejected 3 | . . . . . 1 . 1 . . . 1 . . . . Data Loss (minor) 31 | . . . . . 13 2 1 6 3 1 5 . . . . Data Loss (major) 3 | . . . . . . . . 2 . . 1 . . . . Misfires 5 | . . . . . 1 . . 3 . . 1 . . . . Alerts 2 | . . . . . 1 . . 1 . . . . . . . Misdirections 10 | . . . . . . . . 10 . . . . . . . Targeting Errors 25 | . . . . . 14 1 . 3 1 . 6 . . . . Weapon Failures 1 | . . . . . . . . 1 . . . . . . . Overload Shots . | . . . . . . . . . . . . . . . . Overflow Damage 513 | . . . . 29 147 26 . 4 135 38 102 28 . . 4 Projectiles 344 | . . . . 29 20 26 . 4 135 . 102 28 . . . Explosions 79 | . . . . . 41 . . . . 38 . . . . . Melee 90 | . . . . . 86 . . . . . . . . . 4 Knockbacks 55 | . . . . 5 3 2 . . 11 . 8 21 1 . 4 Impact . | . . . . . . . . . . . . . . . . Kinetic 50 | . . . . 4 3 2 . . 11 . 8 17 1 . 4 Secondary 5 | . . . . 1 . . . . . . . 4 . . . Self-Inflicted Damage 422 | . . . . . 369 . . . . 53 . . . . . Shots 11 | . . . . . 8 . . . . 3 . . . . . Rammed . | . . . . . . . . . . . . . . . . Targets Rammed 2 | . . . . . . . . . 1 1 . . . . . Kicked . | . . . . . . . . . . . . . . . . Crushed 2 | . . . . . . . . . 1 1 . . . . . Highest Temperature 245 | 20 64 . . 135 207 192 141 245 8 . 162 30 . . 133 Average Temperature 46 | 15 22 . . 82 64 116 92 109 3 . 41 11 . . 69 Received Heat Transfer 2571 | . 117 . . 114 567 27 . . 108 312 375 717 9 . 225 Siege Activations 12 | . . . . . . . . . . . 10 2 . . . Total Turns 219 | . . . . . . . . . . . 200 19 . . . Longest Duration 61 | . . . . . . . . . . . 61 17 . . . Robots Corrupted 1 | . . . . . . . . . . . 1 . . . . Combat Hostiles 1 | . . . . . . . . . . . 1 . . . . Parts Fried 8 | . 1 . . . 1 . . . . . 6 . . . . Impact Corruptions 1 | . . . . . . . . . . . . . . . 1 Robots Melted . | . . . . . . . . . . . . . . . . Combat Hostiles . | . . . . . . . . . . . . . . . . Parts Melted 15 | . . . . . 3 1 . . . 3 7 1 . . . Heat Transferred 12347 | . . . . . 1649 518 . 37 1650 800 4516 2185 . . 992 Parts Sabotaged . | . . . . . . . . . . . . . . . . Parts Stolen . | . . . . . . . . . . . . . . . . Parts Stripped . | . . . . . . . . . . . . . . . . Power Chain Reactions 8 | . . . . . 8 . . . . . . . . . . Missiles Intercepted . | . . . . . . . . . . . . . . . . Alert | -11 -10 -10 -10 -9 -8 -7 -7 -7 -6 -6 -5 -5 -5 -5 -4 ------- Run | Scr Mat Min Exi Min Mat Fac Was Fac Fac Ext Fac Upp Upp Zhi Pro Peak Influence 791 | 5 167 . . 75 283 213 30 69 194 185 791 . . . . Initial 102 | . 3 . . . 29 102 10 21 . 86 7 . . . . Average 163 | 1 63 . . 48 165 58 15 25 78 80 399 . . . . Maximum Alert Level 3 | . . . . . 1 1 . . . . 3 . . . . Low Security (%) 78 | 100 100 100 . 100 66 92 100 100 100 100 35 . . . . Level 1 5 | . . . . . 33 7 . . . . . . . . . Level 2 10 | . . . . . . . . . . . 43 . . . . Level 3 5 | . . . . . . . . . . . 20 . . . . Level 4 . | . . . . . . . . . . . . . . . . Level 5 . | . . . . . . . . . . . . . . . . High Security . | . . . . . . . . . . . . . . . . Max Security . | . . . . . . . . . . . . . . . . Squads Dispatched 39 | . 4 . . . 5 5 . 2 12 2 9 . . . . Investigation 7 | . 2 . . . 1 1 . . 1 . 2 . . . . Extermination 12 | . . . . . . 1 . 1 6 . 4 . . . . Reinforcement 16 | . 2 . . . 4 3 . 1 2 2 2 . . . . Assault 1 | . . . . . . . . . . . 1 . . . . Garrison 3 | . . . . . . . . . 3 . . . . . . Intercept . | . . . . . . . . . . . . . . . . Construction Impeded 2 | . . . . . . . . . . 2 . . . . . Haulers Reinforced 2 | . . . . . . . . . 1 . 1 . . . . Stealth | -11 -10 -10 -10 -9 -8 -7 -7 -7 -6 -6 -5 -5 -5 -5 -4 --------- Run | Scr Mat Min Exi Min Mat Fac Was Fac Fac Ext Fac Upp Upp Zhi Pro Distress Signals 6 | . . . . . 4 . . . 1 1 . . . . . Communications Jammed 9 | . . . . . . . . . . . 9 . . . . Distress Signals 9 | . . . . . . . . . . . 9 . . . . Times Spotted 214 | . 19 . . 4 51 6 6 4 28 14 43 25 3 . 11 Peak Tracking Total 10 | . 3 . . 2 6 2 6 1 4 10 5 7 2 . 8 Tactical Retreats 25 | . . . . 3 10 . . . 2 . 6 3 . . 1 Traps | -11 -10 -10 -10 -9 -8 -7 -7 -7 -6 -6 -5 -5 -5 -5 -4 ------- Run | Scr Mat Min Exi Min Mat Fac Was Fac Fac Ext Fac Upp Upp Zhi Pro Traps Triggered 9 | . . . . . 2 6 . . . . 1 . . . . Indirectly . | . . . . . . . . . . . . . . . . Trap Hack Attempts . | . . . . . . . . . . . . . . . . Triggered . | . . . . . . . . . . . . . . . . Disarmed 7 | . 6 . . . . . . . . 1 . . . . . Reprogrammed . | . . . . . . . . . . . . . . . . Reused . | . . . . . . . . . . . . . . . . Traps Extracted . | . . . . . . . . . . . . . . . . Installed . | . . . . . . . . . . . . . . . . Triggered 4 | . . . . . 2 . . . . . . . 2 . . Machines | -11 -10 -10 -10 -9 -8 -7 -7 -7 -6 -6 -5 -5 -5 -5 -4 ---------- Run | Scr Mat Min Exi Min Mat Fac Was Fac Fac Ext Fac Upp Upp Zhi Pro Machines Disabled 7 | . . . . . 2 1 . . 2 1 . 1 . . . Max in Single Turn 1 | . . . . . 1 1 . . 1 1 . 1 . . . Garrison Access 2 | . . . . . . 1 . . . . 1 . . . . Machines Sabotaged . | . . . . . . . . . . . . . . . . Garrisons Compromised . | . . . . . . . . . . . . . . . . Overloaded Fab Kills . | . . . . . . . . . . . . . . . . Fab Network Shutdowns 1 | . . . . . . . . . . . 1 . . . . Hacking | -11 -10 -10 -10 -9 -8 -7 -7 -7 -6 -6 -5 -5 -5 -5 -4 --------- Run | Scr Mat Min Exi Min Mat Fac Was Fac Fac Ext Fac Upp Upp Zhi Pro Machines Accessed 45 | . 3 . 4 1 7 1 . 3 6 10 8 2 . . . Terminals 31 | . 3 . . . 4 . . 3 5 10 5 1 . . . Fabricators 1 | . . . . . . . . . . . 1 . . . . Repair Stations 2 | . . . . . 1 . . . . . 1 . . . . Recycling Units . | . . . . . . . . . . . . . . . . Scanalyzers 3 | . . . . . 2 . . . 1 . . . . . . Garrison Access 2 | . . . . . . 1 . . . . 1 . . . . Total Hacks 129 | . 10 . 41 1 15 1 . 6 10 20 22 3 . . . Successful 77 | . 2 . 41 1 8 1 . 1 2 11 7 3 . . . Failed 52 | . 8 . . . 7 . . 5 8 9 15 . . . . Catastrophic 11 | . 4 . . . 1 . . 2 3 . 1 . . . . Database Lockouts . | . . . . . . . . . . . . . . . . Manual 29 | . 9 . 1 . 7 . . 2 5 3 2 . . . . Terminals 69 | . 10 . . . 10 . . 6 7 20 14 2 . . . Fabricators 1 | . . . . . . . . . . . 1 . . . . Repair Stations 6 | . . . . . 3 . . . . . 3 . . . . Recycling Units . | . . . . . . . . . . . . . . . . Scanalyzers 5 | . . . . . 2 . . . 3 . . . . . . Garrison Access 5 | . . . . . . 1 . . . . 4 . . . . Terminal Hacks 68 | . 2 . 41 1 5 . . 1 1 11 3 3 . . . Record 43 | . . . 40 . . . . . . 1 . 2 . . . Prototype ID Bank 1 | . . . . . . . . . 1 . . . . . . Open Door 9 | . . . . 1 . . . . . 7 . 1 . . . Emergency Access Points 1 | . . . . . 1 . . . . . . . . . . Alert Level 5 | . . . . . 2 . . 1 . 1 1 . . . . Unreport Threat 1 | . . . . . 1 . . . . . . . . . . Locate Traps 1 | . 1 . . . . . . . . . . . . . . Disarm Traps 2 | . 1 . . . . . . . . 1 . . . . . Dispatch Records 1 | . . . . . . . . . . . 1 . . . . Transport Status 1 | . . . . . 1 . . . . . . . . . . Hauler Manifests 1 | . . . . . . . . . . . 1 . . . . Zone Layout 1 | . . . . . . . . . . 1 . . . . . EX-Prototype ID Bank 1 | . . . 1 . . . . . . . . . . . . Fabricator Hacks 1 | . . . . . . . . . . . 1 . . . . Build 1 | . . . . . . . . . . . 1 . . . . Repair Station Hacks 4 | . . . . . 2 . . . . . 2 . . . . Scan Component 2 | . . . . . 1 . . . . . 1 . . . . Repair 2 | . . . . . 1 . . . . . 1 . . . . Recycling Unit Hacks . | . . . . . . . . . . . . . . . . Scanalyzer 2 | . . . . . 1 . . . 1 . . . . . . Insert Component 2 | . . . . . 1 . . . 1 . . . . . . Garrison Access Hacks 2 | . . . . . . 1 . . . . 1 . . . . Seal Access 2 | . . . . . . 1 . . . . 1 . . . . Unauthorized Hacks . | . . . . . . . . . . . . . . . . Terminals . | . . . . . . . . . . . . . . . . Fabricators . | . . . . . . . . . . . . . . . . Repair Stations . | . . . . . . . . . . . . . . . . Recycling Units . | . . . . . . . . . . . . . . . . Scanalyzers . | . . . . . . . . . . . . . . . . Garrison Access . | . . . . . . . . . . . . . . . . Data Cores Recovered 2 | . 2 . . . . . . . . . . . . . . Used 1 | . 1 . . . . . . . . . . . . . . Hacking Detections 36 | . 3 . . . 7 . . 3 6 9 7 1 . . . Full Trace Events 4 | . 1 . . . . . . . 1 . 2 . . . . Feedback Events . | . . . . . . . . . . . . . . . . Feedback Blocked . | . . . . . . . . . . . . . . . . Robot Schematics Acquired . | . . . . . . . . . . . . . . . . Robots Built . | . . . . . . . . . . . . . . . . Matter . | . . . . . . . . . . . . . . . . Time . | . . . . . . . . . . . . . . . . Total Robot Build Rating . | . . . . . . . . . . . . . . . . Part Schematics Acquired . | . . . . . . . . . . . . . . . . Parts Built 2 | . . . . . . . . . . . 2 . . . . Matter 212 | . . . . . . . . . . . 212 . . . . Time 106 | . . . . . . . . . . . 106 . . . . Total Part Build Rating 12 | . . . . . . . . . . . 12 . . . . Parts Repaired 2 | . . . . . 1 . . . . . 1 . . . . Time 54 | . . . . . 26 . . . . . 28 . . . . Parts Recycled . | . . . . . . . . . . . . . . . . Recycled Matter . | . . . . . . . . . . . . . . . . Retrieved Matter . | . . . . . . . . . . . . . . . . Retrieved Components . | . . . . . . . . . . . . . . . . Parts Scanalyzed 1 | . . . . . . . . . 1 . . . . . . Part Schematics Acquired . | . . . . . . . . . . . . . . . . Parts Damaged . | . . . . . . . . . . . . . . . . Bothacking | -11 -10 -10 -10 -9 -8 -7 -7 -7 -6 -6 -5 -5 -5 -5 -4 ------------ Run | Scr Mat Min Exi Min Mat Fac Was Fac Fac Ext Fac Upp Upp Zhi Pro Used RIF Installer . | . . . . . . . . . . . . . . . . Robots Hacked . | . . . . . . . . . . . . . . . . Non-combat . | . . . . . . . . . . . . . . . . Combat . | . . . . . . . . . . . . . . . . Robot Hacks Applied . | . . . . . . . . . . . . . . . . Relay Couplers Released . | . . . . . . . . . . . . . . . . Robots Rewired . | . . . . . . . . . . . . . . . . Allies Hacked . | . . . . . . . . . . . . . . . . Hacks Repelled . | . . . . . . . . . . . . . . . . Allies | -11 -10 -10 -10 -9 -8 -7 -7 -7 -6 -6 -5 -5 -5 -5 -4 -------- Run | Scr Mat Min Exi Min Mat Fac Was Fac Fac Ext Fac Upp Upp Zhi Pro Total Allies 13 | . . . . 2 . 3 . . . 8 . . . . . Largest Group 8 | . . . . 2 2 3 . . . 8 . . . . . Highest-Rated Group 249 | . . . . 38 38 93 . . . 249 . . . . . Highest-Rated Ally 37 | . . . . 31 31 31 . . . 37 . . . . . Total Orders 23 | . . . . . 7 4 . 4 1 . 7 . . . . EXPLORE 12 | . . . . . 3 3 . 2 1 . 3 . . . . RETURN 11 | . . . . . 4 1 . 2 . . 4 . . . . Ally Attacks 142 | . . . . . 17 12 . . . 58 55 . . . . Total Damage 1701 | . . . . . 147 188 . . . 969 397 . . . . Kills 6 | . . . . . 1 . . . . 4 1 . . . . Allies Corrupted 1 | . . . . . . 1 . . . . . . . . . Allies Melted . | . . . . . . . . . . . . . . . . Intel | -11 -10 -10 -10 -9 -8 -7 -7 -7 -6 -6 -5 -5 -5 -5 -4 ------- Run | Scr Mat Min Exi Min Mat Fac Was Fac Fac Ext Fac Upp Upp Zhi Pro Robot Analysis Total . | . . . . . . . . . . . . . . . . Derelict Logs Recovered 5 | . . 1 . 2 . . . . . . . 1 1 . . Drone Launches 32 | . . . . . 6 3 . 2 1 3 17 . . . . Drone Recoveries 26 | . . . . . 6 3 . 2 . 2 13 . . . . Exploration | -11 -10 -10 -10 -9 -8 -7 -7 -7 -6 -6 -5 -5 -5 -5 -4 ------------- Run | Scr Mat Min Exi Min Mat Fac Was Fac Fac Ext Fac Upp Upp Zhi Pro Turns Passed 16565 | 114 1201 96 867 234 2153 1046 194 836 3309 806 3309 1606 416 8 370 Spaces Moved 8535 | 59 633 60 531 111 988 585 119 475 1724 443 1518 863 234 6 186 Core 39 | 3 . . . . . . . . . . . . . . 36 Treads 8496 | 56 633 60 531 111 988 585 119 475 1724 443 1518 863 234 6 150 Legs . | . . . . . . . . . . . . . . . . Wheels . | . . . . . . . . . . . . . . . . Hover . | . . . . . . . . . . . . . . . . Flight . | . . . . . . . . . . . . . . . . Fastest Speed 50 | 50 160 160 160 180 160 160 160 145 158 156 156 160 160 160 50 Average Speed 161 | 154 160 160 162 180 160 161 160 159 168 157 160 160 160 160 138 Slowest Speed 190 | 160 180 160 180 180 180 180 160 181 190 175 180 160 160 160 160 Overloaded Moves . | . . . . . . . . . . . . . . . . Propulsion Burnouts . | . . . . . . . . . . . . . . . . Robots Hopped . | . . . . . . . . . . . . . . . . Cave-ins Triggered . | . . . . . . . . . . . . . . . . Exploration Rate (%) 44 | 6 73 16 91 38 63 35 76 29 36 51 32 87 44 7 26 Regions Visited 15 Branch Regions 8 Pre-discovered Areas 4 | . . 1 1 . . . . . . . . 1 1 . . Known Exits Taken 3 | . 1 1 . . 1 . . . . . . . . . . Unknown Exits Taken 10 | 1 . . 1 1 . . . 1 1 1 1 1 1 1 . Scrap Searched 6 | . . . . . . . . . . . . 2 4 . . Spaces Dug 4 | . . . . . 2 . . 1 . . . 1 . . . Terrain Destroyed 146 | . . . . . 46 1 . 2 3 45 22 17 4 . 6 Melee 2 | . . . . . 2 . . . . . . . . . . Projectile 63 | . . . . . 4 1 . 2 3 4 22 17 4 . 6 AOE 81 | . . . . . 40 . . . . 41 . . . . . Terrain Rammed . | . . . . . . . . . . . . . . . . Walls Destroyed . | . . . . . . . . . . . . . . . . Machines Disabled . | . . . . . . . . . . . . . . . . Actions | -11 -10 -10 -10 -9 -8 -7 -7 -7 -6 -6 -5 -5 -5 -5 -4 --------- Run | Scr Mat Min Exi Min Mat Fac Was Fac Fac Ext Fac Upp Upp Zhi Pro Total 10476 | 78 744 61 536 129 1405 654 124 540 2019 492 2187 997 265 5 240 Wait 919 | . 28 . . 5 237 16 . 4 163 11 403 39 10 . 3 Move 8521 | 58 632 59 530 110 987 585 118 474 1723 442 1517 862 233 5 186 Hop . | . . . . . . . . . . . . . . . . Pick Up 211 | 12 21 1 3 1 39 12 3 19 24 1 56 13 6 . . Fast Attach . | . . . . . . . . . . . . . . . . Attach 84 | 6 2 . 1 . 21 5 1 2 5 6 19 11 . . 5 Detach 4 | . . . . . 4 . . . . . . . . . . Swap 139 | . 7 . . . 17 9 . 17 30 3 42 6 5 . 3 Drop 146 | . 12 1 2 . 21 10 2 17 21 1 48 7 4 . . Fire 428 | 2 42 . . 13 74 17 . 7 52 27 102 59 7 . 26 Melee 22 | . . . . . 5 . . . . . . . . . 17 Ram . | . . . . . . . . . . . . . . . . Kick . | . . . . . . . . . . . . . . . . Crush 2 | . . . . . . . . . 1 1 . . . . . Escape Stasis . | . . . . . . . . . . . . . . . . Rewire . | . . . . . . . . . . . . . . . . Trap . | . . . . . . . . . . . . . . . . Miscellaneous . | . . . . . . . . . . . . . . . . Route ------- -11/Scrapyard -10/Materials (discovered 4 exits: *Mat x2 / *Min x2) -10/Mines -10/Exiles (discovered 2 exits: *Min x2) -9/Mines -8/Materials (discovered 2 exits: *Fac x2) -7/Factory (discovered 2 exits: *Fac / Low) -7/Waste -7/Factory (discovered 2 exits: *Fac / *Low) -6/Factory (discovered 4 exits: *Fac x2 / [*Low] / *Ext) -6/Extension -5/Factory -5/Upper Caves -5/Upper Caves -5/Zhirov -4/Proximity Caves History --------- Turn | Location | Event 34 | -11/Scrapyard | Discovered new exit (range 16) 115 | -11/Scrapyard | Entered Materials 317 | -10/Materials | Build established: Mutant 600 | -10/Materials | Discovered new exit (range 13) 662 | -10/Materials | Discovered new exit (range 13) 666 | -10/Materials | Discovered new exit (range 15) 1002 | -10/Materials | Discovered new exit (range 14) 1096 | -10/Materials | Identified exit to Materials 1227 | -10/Materials | Identified exit to Mines 1316 | -10/Materials | Entered Mines 1326 | -10/Mines | Learned location of Zion (-6) 1344 | -10/Mines | A weapon hastily lodged in a ceiling crevice suddenly fell to the ground 1392 | -10/Mines | Deemed a non-threat by the Exiles lab entrance 1393 | -10/Mines | Discovered new exit (range 5) 1398 | -10/Mines | Identified exit to Exiles 1412 | -10/Mines | Entered Exiles 1436 | -10/Exiles | Discovered new exit (range 15) 1483 | -10/Exiles | Met 8R-AWN 1512 | -10/Exiles | Met EX-HEX 1561 | -10/Exiles | Met EX-BIN 1580 | -10/Exiles | Aligned with FarCom system 1582 | -10/Exiles | Given EX-Vault access code 1668 | -10/Exiles | Opened EX-Vault 1682 | -10/Exiles | Found Supersonic Drone Bay 1716 | -10/Exiles | Warned to stay clear of 0b10 Research branches 1761 | -10/Exiles | Met EX-DEC 1929 | -10/Exiles | Visited The Gauntlet 2263 | -10/Exiles | Discovered new exit (range 11) 2279 | -10/Exiles | Left Exiles lab with Supersonic Drone Bay 2279 | -10/Exiles | Entered Mines 2399 | -9/Mines | Learned location of 1 exit from Materials 2414 | -9/Mines | Found the Drone Emporium 2424 | -9/Mines | Found Prototype Device 2504 | -9/Mines | Discovered new exit (range 4) 2513 | -9/Mines | Entered Materials 2513 | -8/Materials | Accompanied by 2 allies 2513 | -8/Materials | Evolved 4 slots: Propulsion x1, Utility x3 2514 | -8/Materials | Identified exit to Factory 2518 | -8/Materials | Led the pair of lost Derelicts to an unsafe place 2568 | -8/Materials | Identified Thief Drone Bay 3087 | -8/Materials | Build established: Scavenger-Mutant 3219 | -8/Materials | Discovered exit to Factory (range 28) 3325 | -8/Materials | Lost 3 parts (1p2n) 3627 | -8/Materials | Repaired Lgt. Treads 4364 | -8/Materials | System corruption reached 10% 4666 | -8/Materials | Entered Factory 4666 | -7/Factory | Evolved 2 slots: Propulsion x1, Utility x1 4667 | -7/Factory | Identified exit to Lower Caves 5106 | -7/Factory | Allied Derelicts emerged from ambush trap array 5431 | -7/Factory | Discovered new exit (range 10) 5712 | -7/Factory | Sucked down chute 5712 | -7/Factory | Entered Waste 5716 | -7/Waste | Found Broken Imp. Powered Armor 5727 | -7/Waste | EMP discharged 5727 | -7/Waste | System corruption reached 10% 5765 | -7/Waste | Spotted C-40 Crusher 5784 | -7/Waste | Spotted C-40 Crusher 5792 | -7/Waste | Spotted C-40 Crusher 5824 | -7/Waste | Spotted C-40 Crusher 5827 | -7/Waste | EMP discharged 5836 | -7/Waste | Crushed by Compactor (1 part destroyed, 1 dropped) 5876 | -7/Waste | Spotted C-40 Crusher 5882 | -7/Waste | Discovered new exit (range 16) 5885 | -7/Waste | Spotted C-40 Crusher 5906 | -7/Waste | Entered Factory 6552 | -7/Factory | Discovered new exit (range 40) 6559 | -7/Factory | Discovered exit to Lower Caves (range 84) 6742 | -7/Factory | Entered another Factory area 6742 | -6/Factory | Evolved 2 slots: Power x1, Utility x1 6755 | -6/Factory | Discovered new exit (range 47) 6792 | -6/Factory | Build established: Mutant 7067 | -6/Factory | Garrison activated, responded to threat 8886 | -6/Factory | Build established: Scavenger-Mutant 9121 | -6/Factory | Discovered new exit (range 15) 9900 | -6/Factory | Discovered new exit (range 14) 10029 | -6/Factory | Discovered new exit (range 15) 10051 | -6/Factory | Entered Extension 10343 | -6/Extension | Rescued a captive Derelict 10386 | -6/Extension | Rescued a captive Derelict 10386 | -6/Extension | Rescued a captive Derelict 10445 | -6/Extension | Rescued a captive Derelict 10446 | -6/Extension | Rescued a captive Derelict 10528 | -6/Extension | Rescued a captive Derelict 10573 | -6/Extension | Rescued a captive Derelict 10622 | -6/Extension | Rescued a captive Derelict 10629 | -6/Extension | Spotted B-75 Beast 10649 | -6/Extension | Spotted B-75 Beast 10714 | -6/Extension | Destroyed B-75 Beast 10751 | -6/Extension | Disrupted transfer network 10756 | -6/Extension | Destroyed B-75 Beast 10801 | -6/Extension | Discovered new exit (range 3) 10857 | -6/Extension | Entered Factory 10857 | -5/Factory | Evolved 2 slots: Utility x2 10862 | -5/Factory | Lost 5 parts (1n3u1w) 11124 | -5/Factory | Build established: Mutant 12048 | -5/Factory | Local fabrication network quarantined 12075 | -5/Factory | Fabricated System Restoration Module (x2) 12233 | -5/Factory | Build established: Scavenger-Mutant 13257 | -5/Factory | First assault squad dispatched 13667 | -5/Factory | Repaired Hvy. Treads 14124 | -5/Factory | Discovered new exit (range 7) 14166 | -5/Factory | Entered Upper Caves 14506 | -5/Upper Caves | Spotted B-75 Beast 14833 | -5/Upper Caves | Destroyed B-75 Beast 15057 | -5/Upper Caves | Attracted the attention of an 0b10 base 15076 | -5/Upper Caves | Core integrity fell below 50% 15130 | -5/Upper Caves | Lost 6 parts (1p3u2w) 15262 | -5/Upper Caves | Attracted the attention of an 0b10 checkpoint 15470 | -5/Upper Caves | Build established: Derelict-Mutant 15589 | -5/Upper Caves | Discovered new exit (range 5) 15772 | -5/Upper Caves | Entered another Upper Caves area 15800 | -5/Upper Caves | Attracted the attention of an 0b10 checkpoint 16085 | -5/Upper Caves | Learned location of Armory (-3) 16168 | -5/Upper Caves | Discovered new exit (range 13) 16188 | -5/Upper Caves | Entered Zhirov 16188 | -5/Zhirov | Discovered new exit (range 3) 16196 | -5/Zhirov | Entered Proximity Caves 16413 | -4/Proximity Caves | Spotted B-86 Titan 16414 | -4/Proximity Caves | Entered a huge 0b10 base via the front door 16514 | -4/Proximity Caves | Core integrity fell below 20% 16566 | -4/Proximity Caves | Destroyed by Y-64 Sentinel with Wave Gun Last Messages --------------- 16521_ Imp. Medium Treads destroyed. 16521_ Adv. Heat Sink destroyed. 16521_ Lrg. Storage Unit destroyed. 16521_ Penetrated by Slug. 16521_ Adv. Plasma Cannon destroyed. 16524_ B-86 Titan exits siege mode. 16526_ Penetrated by Slug. 16526_ Imp. Medium Treads destroyed. 16532_ Spk. Medium Treads destroyed. 16537_ B-86 Titan activates siege mode. 16537_ Mic. Fission Core destroyed. 16537_ Penetrated by Slug. 16540_ Destroyed Adv. Cooling System. 16540_ B-86 Titan system corrupted by crushing effect. 16541_ Imp. Medium Treads destroyed. 16541_ Knocked back. 16546_ Penetrated by Slug. 16546_ Com. Battery destroyed. 16552_ B-86 Titan misfires. 16560_ Mak. Hammer destroyed. Map ----- +----------------------------------------------------+ | ?????????????????????????????????????????????????? | | ?????????????????????????????????????????????????? | | ?????????????????????????????????????????????????? | | ?????????????????????????????????????????????????? | | ?????????????????????????????????????????????????? | | ?????????????????????????????????????????????????? | | ?????????????????????????????????????????????????? | | ?????????????????????????????????????????????????? | | ?????? ??????????????????????????????????????????? | | ?????? ??????????????????????????????????????????? | | ?????? ??????????????????????????????????????????? | | ?????? ??????????????????????????????????????????? | | ?????? ??????????????????????????????????????????? | | ?????? ??????????????????????????????????????????? | | ?????? ?????????#???????######???????????????????? | | ?????# #????????# ? ???? #???????????????????? | | ?????# #????????# ???? #???????????????????? | | ?????# #????????# ??? #???????????????????? | | ?????# #????????# ?? #???????????????????? | | ?????# ###??##### """" ###+????????????????? | | ?????# ??? """" ?????????????????? | | ?????# ?????? """" ??????????????????? | | ?????# #????????# """" #???????????????????? | | ###### #####???## #???????????????????? | | # #???#i #???????????????????? | | # ##???# u @ #???????????????????? | | # #???# #???????????????????? | | / ##???###### ##Y###???????????????????? | | / #?????????# #?##?????????????????????? | | / ########### #????????????????????????? | | / ^ l #????????????????????????? | | " #????????????????????????? | | # ###########+##????????????????????????? | | # #?????????????????????????????????????? | | # #?????????????????????????????????????? | | ##### #####?????????????????????????????????????? | | ????# #?????????????????????????????????????????? | | ????####?????????????????????????????????????????? | | ?????????????????????????????????????????????????? | | ?????????????????????????????????????????????????? | | ?????????????????????????????????????????????????? | | ?????????????????????????????????????????????????? | | ?????????????????????????????????????????????????? | | ?????????????????????????????????????????????????? | | ?????????????????????????????????????????????????? | | ?????????????????????????????????????????????????? | | ?????????????????????????????????????????????????? | | ?????????????????????????????????????????????????? | | ?????????????????????????????????????????????????? | | ?????????????????????????????????????????????????? | +----------------------------------------------------+ Best States ------------- Heat Dissipation 118 Energy Generation 41 Energy Capacity 570 Matter Stores 300 Matter Capacity 300 Sight Range 16 Terrain Scan Density 10 Jamming Range 12 Armor Coverage 1350 Resistance: KI 30 Resistance: TH 10 Propulsion Shielding 33 Weapon Cycling 20 Evasion (%) 50 Recoil Reduction 4 Matter Filtering 50 Energy Filtering 30 Offensive Hacking 10 Item Schematics ----------------- None Robot Schematics ------------------ None Fabricated ------------ System Restoration Module | x2 | -5/Factory | Preloaded Alien Tech Used ----------------- None Achievements -------------- None Challenges ------------ None Game ------ Seed AccelerationGlidesysJammer Manual? 0 Play Time 02:47:55 Cumulative 67.3 hours Start 2021.04.02 @ 13:44:31 End 2021.04.02 @ 23:01:39 Sessions 11 Manual Loads 0 Difficulty Rogue Special Mode None Game No. 44 Rogue 44 Adventurer 0 Explorer 0 Win Type - Total 0 Types 0/0/0/0/0/0/0/0/0 Lore% 23 Gallery% 37 Achievement% 27 Wizard Run 0 Options --------- ASCII 0 Keyboard 0 Movement Mouse Keybinds 0 Fullscreen 2 Font 18/SmallcapsGlow Map View 76x50 Tactical HUD 1 Map Filters NONE Filters NONE Steam 1 RUN: 8ffcb144-6d01-4efc-96a7-7a626dae73d7